[Event "IMSA Blitz Women 2019"]
[Site "Hengshui"]
[Date "2019.05.17"]
[Round "6.1"]
[White "Lei, Tingjie"]
[Black "Koneru, Humpy"]
[Result "1-0"]
[ECO "C24"]
[WhiteElo "2507"]
[BlackElo "2553"]
[Annotator "ChessBase"]
[PlyCount "77"]
[EventDate "2019.05.17"]
[EventType "blitz"]
[EventCountry "CHN"]
[SourceTitle "playchess.com"]
[Source "ChessBase"]
[SourceQuality "1"]
[TimeControl "180+2"]

1. e4 {[%emt 0:00:00]} e5 {[%emt 0:00:00]} 2. Bc4 {[%emt 0:00:00]} Nf6 {[%emt 0:00:03]} 3. d3 {[%emt 0:00:02]} c6 {[%emt 0:00:12]} 4. Nf3 {[%emt 0:00:01]} d5 {[%emt 0:00:04]} 5. Bb3 {[%emt 0:00:02]} a5 {[%emt 0:00:08]} 6. a4 {[%emt 0:00:01]} Bb4+ {[%emt 0:00:17]} 7. c3 {[%emt 0:00:02]} Bd6 {[%emt 0:00:02]} 8. exd5 {[%emt 0:00:02]} cxd5 {[%emt 0:00:06]} 9. Bg5 {[%emt 0:00:01]} Be6 {[%emt 0:00:05]} 10. Na3 {[%emt 0:00:01]} Nbd7 {[%emt 0:00:09]} 11. Nb5 {[%emt 0:00:02]} Bb8 {[%emt 0:00:08]} 12. O-O {[%emt 0:00:02]} O-O {[%emt 0:00:03]} 13. Bh4 {[%emt 0:00:06]} h6 {[%emt 0:00:02]} 14. Re1 {[%emt 0:00:02]} Re8 {[%emt 0:00:08]} 15. h3 {[%emt 0:00:24]} Ra6 {[%emt 0:00:02]} 16. d4 {[%emt 0:00:06]} e4 {[%emt 0:00:07]} 17. Nd2 {[%emt 0:00:01]} g5 {[%emt 0:00:21]} 18. Bg3 {[%emt 0:00:01]} Bxg3 {[%emt 0:00:07]} 19. fxg3 {[%emt 0:00:02]} Nf8 {[%emt 0:00:45]} 20. Nf1 {[%emt 0:00:04]} Ng6 {[%emt 0:00:02]} 21. Qd2 {[%emt 0:00:05]} Qb8 {[%emt 0:00:06]} 22. Qf2 {[%emt 0:00:04]} Kg7 {[%emt 0:00:02]} 23. Ne3 {[%emt 0:00:05]} Qd8 {[%emt 0:00:18]} 24. Rf1 {[%emt 0:00:05]} Rc6 {[%emt 0:00:04]} 25. Rad1 {[%emt 0:00:09]} Ng8 {[%emt 0:00:09]} 26. c4 {[%emt 0:00:14]} N8e7 {[%emt 0:00:03]} 27. cxd5 {[%emt 0:00:02]} Nxd5 {[%emt 0:00:03]} 28. Bxd5 {[%emt 0:00:09]} Bxd5 {[%emt 0:00:01]} 29. Nxd5 {[%emt 0:00:04]} Qxd5 {[%emt 0:00:01]} 30. Nc3 {[%emt 0:00:01]} Qd7 {[%emt 0:00:04]} 31. d5 {[%emt 0:00:01]} Rd6 {[%emt 0:00:04]} 32. Qd4+ {[%emt 0:00:04]} Re5 {[%emt 0:00:03]} 33. Rde1 {[%emt 0:00:08]} f5 {[%emt 0:00:02]} 34. g4 {[%emt 0:00:02]} Kh7 {[%emt 0:00:02]} 35. gxf5 {[%emt 0:00:02]} Rxf5 {[%emt 0:00:01]} 36. Nxe4 {[%emt 0:00:06]} Rfxd5 {[%emt 0:00:03]} 37. Nf6+ {[%emt 0:00:03]} Kh8 {[%emt 0:00:05]} 38. Qe4 {[%emt 0:00:04]} Qd8 {[%emt 0:00:05]} 39. Qxg6 {[%emt 0:00:04]} 1-0

[Event "IMSA Blitz Women 2019"]
[Site "Hengshui"]
[Date "2019.05.17"]
[Round "6.1"]
[White "Khotenashvili, Bela"]
[Black "Zhao, Xue"]
[Result "1-0"]
[ECO "A05"]
[WhiteElo "2476"]
[BlackElo "2485"]
[Annotator "ChessBase"]
[PlyCount "65"]
[EventDate "2019.05.17"]
[EventType "blitz"]
[EventCountry "CHN"]
[SourceTitle "playchess.com"]
[Source "ChessBase"]
[SourceQuality "1"]
[TimeControl "180+2"]

1. Nf3 {[%emt 0:00:00]} Nf6 {[%emt 0:00:00]} 2. g3 {[%emt 0:00:00]} b5 {[%emt 0:00:00]} 3. Bg2 {[%emt 0:00:01]} d5 {[%emt 0:00:01]} 4. O-O {[%emt 0:00:14]} e6 {[%emt 0:00:01]} 5. d3 {[%emt 0:00:01]} Be7 {[%emt 0:00:03]} 6. Nbd2 {[%emt 0:00:01]} O-O {[%emt 0:00:06]} 7. e4 {[%emt 0:00:02]} Bb7 {[%emt 0:00:15]} 8. e5 {[%emt 0:00:10]} Nfd7 {[%emt 0:00:01]} 9. Re1 {[%emt 0:00:04]} c5 {[%emt 0:00:02]} 10. Nf1 {[%emt 0:00:01]} b4 {[%emt 0:00:04]} 11. h4 {[%emt 0:00:07]} Nc6 {[%emt 0:00:02]} 12. Bf4 {[%emt 0:00:02]} a5 {[%emt 0:00:01]} 13. Ne3 {[%emt 0:00:20]} f5 {[%emt 0:00:49]} 14. exf6 {[%emt 0:00:02]} Bxf6 {[%emt 0:00:05]} 15. Ng4 {[%emt 0:00:05]} Bxb2 {[%emt 0:00:24]} 16. Rb1 {[%emt 0:00:01]} Bc3 {[%emt 0:00:01]} 17. Rxe6 {[%emt 0:00:01]} Nf6 {[%emt 0:00:12]} 18. Ng5 {[%emt 0:00:40]} Nd4 {[%emt 0:00:27]} 19. Be3 {[%emt 0:00:37]} h6 {[%emt 0:00:24]} 20. Bxd4 {[%emt 0:00:04]} Bxd4 {[%emt 0:00:03]} 21. Nh3 {[%emt 0:00:42]} Nxg4 {[%emt 0:00:12]} 22. Qxg4 {[%emt 0:00:00]} Bc8 {[%emt 0:00:01]} 23. Nf4 {[%emt 0:00:05]} Bxe6 {[%emt 0:00:11]} 24. Qxe6+ {[%emt 0:00:00]} Kh7 {[%emt 0:00:02]} 25. Bxd5 {[%emt 0:00:05]} Rxf4 {[%emt 0:00:03]} 26. gxf4 {[%emt 0:00:05]} Ra7 {[%emt 0:00:03]} 27. Be4+ {[%emt 0:00:04]} Kh8 {[%emt 0:00:01]} 28. Qg6 {[%emt 0:00:02]} Kg8 {[%emt 0:00:01]} 29. Bf5 {[%emt 0:00:06]} Re7 {[%emt 0:00:06]} 30. Be6+ {[%emt 0:00:08]} Kh8 {[%emt 0:00:03]} 31. Bf5 {[%emt 0:00:02]} Kg8 {[%emt 0:00:01]} 32. Qh7+ {[%emt 0:00:04]} Kf8 {[%emt 0:00:02]} 33. Qh8+ {[%emt 0:00:01]} 1-0

[Event "IMSA Blitz Women 2019"]
[Site "Hengshui"]
[Date "2019.05.17"]
[Round "6.1"]
[White "Krush, Irina"]
[Black "Paehtz, Elisabeth"]
[Result "0-1"]
[ECO "A40"]
[WhiteElo "2422"]
[BlackElo "2470"]
[Annotator "RC"]
[PlyCount "296"]
[EventDate "2019.05.17"]
[EventType "blitz"]
[EventCountry "CHN"]
[SourceTitle "playchess.com"]
[Source "ChessBase"]
[SourceQuality "1"]
[TimeControl "180+2"]

1. d4 {[%emt 0:00:00]} e6 {[%emt 0:00:00]} 2. c4 {[%emt 0:00:01]} b6 {[%emt 0:00:00]} 3. Nf3 {[%emt 0:00:01]} Bb7 {[%emt 0:00:01]} 4. g3 {[%emt 0:00:02]} Bb4+ {[%emt 0:00:01]} 5. Bd2 {[%emt 0:00:05]} Bxf3 {[%emt 0:00:02]} 6. exf3 {[%emt 0:00:02]} Bxd2+ {[%emt 0:00:02]} 7. Qxd2 {[%emt 0:00:07]} d5 {[%emt 0:00:05]} 8. Nc3 {[%emt 0:00:10]} Ne7 {[%emt 0:00:05]} 9. f4 {[%emt 0:00:04]} c6 {[%emt 0:00:04]} 10. Bd3 {[%emt 0:00:25]} Nd7 {[%emt 0:00:13]} 11. O-O {[%emt 0:00:03]} dxc4 {[%emt 0:00:11]} 12. Bxc4 {[%emt 0:00:02]} Nf6 {[%emt 0:00:02]} 13. Rfd1 {[%emt 0:00:18]} O-O {[%emt 0:00:03]} 14. Be2 {[%emt 0:00:04]} Qd6 {[%emt 0:00:03]} 15. Bf3 {[%emt 0:00:06]} Rfd8 {[%emt 0:00:04]} 16. Ne4 {[%emt 0:00:09]} Nxe4 {[%emt 0:00:01]} 17. Bxe4 {[%emt 0:00:01]} Rac8 {[%emt 0:00:05]} 18. Qe2 {[%emt 0:00:11]} g6 {[%emt 0:00:09]} 19. Rac1 {[%emt 0:00:02]} Qb4 {[%emt 0:00:03]} 20. a3 {[%emt 0:00:04]} Qd6 {[%emt 0:00:14]} 21. h4 {[%emt 0:00:10]} h5 {[%emt 0:00:03]} 22. b4 {[%emt 0:00:06]} Rc7 {[%emt 0:00:09]} 23. Kg2 {[%emt 0:00:17]} Nd5 {[%emt 0:00:02]} 24. Bf3 {[%emt 0:00:29]} Qe7 {[%emt 0:00:25]} 25. Qe5 {[%emt 0:00:03]} Rd6 {[%emt 0:00:06]} 26. Rd2 {[%emt 0:00:06]} Qd7 {[%emt 0:00:15]} 27. Rdc2 {[%emt 0:00:04]} Ne7 {[%emt 0:00:02]} 28. b5 {[%emt 0:00:03]} Rxd4 {[%emt 0:00:07]} 29. bxc6 {[%emt 0:00:01]} Qd6 {[%emt 0:00:02]} 30. Qf6 {[%emt 0:00:17]} Nf5 {[%emt 0:00:18]} 31. Kg1 {[%emt 0:00:13]} Qe7 {[%emt 0:00:13]} 32. Qe5 {[%emt 0:00:03]} Qd6 {[%emt 0:00:01]} 33. Qf6 {[%emt 0:00:00]} Qxa3 {[%emt 0:00:12]} 34. Kg2 {[%emt 0:00:13]} Qd6 {[%emt 0:00:01]} 35. Qg5 {[%emt 0:00:02]} Qe7 {[%emt 0:00:04]} 36. Ra1 {[%emt 0:00:04]} Qxg5 {[%emt 0:00:02]} 37. hxg5 {[%emt 0:00:01]} Rb4 {[%emt 0:00:06]} 38. Rd2 {[%emt 0:00:03]} Nd4 {[%emt 0:00:04]} 39. Rc1 {[%emt 0:00:02]} a5 {[%emt 0:00:04]} 40. Be4 {[%emt 0:00:02]} Kg7 {[%emt 0:00:12]} 41. Rcd1 {[%emt 0:00:02]} Nb3 {[%emt 0:00:03]} 42. Rd7 {[%emt 0:00:01]} Rc8 {[%emt 0:00:04]} 43. Bf3 {[%emt 0:00:02]} Rc4 {[%emt 0:00:05]} 44. Rb7 {[%emt 0:00:02]} Nd4 {[%emt 0:00:07]} 45. Rxb6 {[%emt 0:00:04]} Nxf3 {[%emt 0:00:01]} 46. Kxf3 {[%emt 0:00:01]} R8xc6 {[%emt 0:00:01]} 47. Rb7 {[%emt 0:00:01]} Rc7 {[%emt 0:00:01]} 48. Rd7 {[%emt 0:00:01]} Rxb7 {[%emt 0:00:01]} 49. Rxb7 {[%emt 0:00:01]} Ra4 {[%emt 0:00:04]} 50. Ra7 {[%emt 0:00:01]} Ra3+ {[%emt 0:00:01]} 51. Kg2 {[%emt 0:00:05]} Ra1 {[%emt 0:00:01]} 52. Kf3 {[%emt 0:00:02]} a4 {[%emt 0:00:01]} 53. Kg2 {[%emt 0:00:00]} a3 {[%emt 0:00:00]} 54. Kf3 {[%emt 0:00:01]} Kf8 {[%emt 0:00:02]} 55. Kg2 {[%emt 0:00:02]} Ke8 {[%emt 0:00:01]} 56. Kf3 {[%emt 0:00:01]} a2 {[%emt 0:00:02]} 57. Kg2 {[%emt 0:00:01]} Kd8 {[%emt 0:00:01]} 58. Kf3 {[%emt 0:00:03]} Kc8 {[%emt 0:00:01]} 59. Kg2 Kb8 60. Ra3 {[%emt 0:00:02]} Kc7 {[%emt 0:00:01]} 61. Ra7+ {[%emt 0:00:01]} Kd6 {[%emt 0:00:01]} 62. Ra6+ {[%emt 0:00:01]} Kd5 {[%emt 0:00:01]} 63. Ra5+ {[%emt 0:00:01]} Kd4 {[%emt 0:00:04]} 64. Ra4+ {[%emt 0:00:01]} Kc3 {[%emt 0:00:01]} 65. Ra8 {[%emt 0:00:01]} Kd4 {[%emt 0:00:11]} 66. Ra4+ {[%emt 0:00:02]} Kc5 {[%emt 0:00:01]} 67. Ra8 {[%emt 0:00:01]} e5 {[%emt 0:00:03]} 68. fxe5 {[%emt 0:00:02]} Kd4 {[%emt 0:00:04]} 69. Ra5 {[%emt 0:00:02]} Ke4 {[%emt 0:00:02]} 70. Ra3 {[%emt 0:00:13]} Kxe5 {[%emt 0:00:02]} 71. Ra7 {[%emt 0:00:02]} Ke6 {[%emt 0:00:01]} 72. Ra5 {[%emt 0:00:02]} Kd6 {[%emt 0:00:03]} 73. Kf3 {[%emt 0:00:01]} Ke6 {[%emt 0:00:02]} 74. Kg2 {[%emt 0:00:02]} Ke7 {[%emt 0:00:01]} 75. Kf3 {[%emt 0:00:01]} Kf8 {[%emt 0:00:02]} 76. Kg2 {[%emt 0:00:01]} Kg7 {[%emt 0:00:01]} 77. Kf3 {[%emt 0:00:01]} Kf8 {[%emt 0:00:04]} 78. Kg2 {[%emt 0:00:01]} Ke8 {[%emt 0:00:00]} 79. Ra7 {[%emt 0:00:01]} Kd8 {[%emt 0:00:02]} 80. Kf3 {[%emt 0:00:01]} Kc8 {[%emt 0:00:00]} 81. Kg2 {[%emt 0:00:00]} Kb8 {[%emt 0:00:01]} 82. Ra3 {[%emt 0:00:01]} Kb7 {[%emt 0:00:01]} 83. Kf3 {[%emt 0:00:01]} Kc6 {[%emt 0:00:00]} 84. Kg2 {[%emt 0:00:02]} Kd5 {[%emt 0:00:01]} 85. Ra4 {[%emt 0:00:03]} Ke5 {[%emt 0:00:08]} 86. Kf3 {[%emt 0:00:01]} Ke6 {[%emt 0:00:10]} 87. Ra5 {[%emt 0:00:02]} Kd6 {[%emt 0:00:01]} 88. Kg2 {[%emt 0:00:02]} Kc6 {[%emt 0:00:00]} 89. Kf3 {[%emt 0:00:01]} Kb6 {[%emt 0:00:00]} 90. Ra8 {[%emt 0:00:01]} Kb7 {[%emt 0:00:01]} 91. Ra3 {[%emt 0:00:01]} Kc6 {[%emt 0:00:00]} 92. Ra6+ {[%emt 0:00:04]} Kd5 {[%emt 0:00:01]} 93. Ra5+ {[%emt 0:00:01]} Ke6 {[%emt 0:00:01]} 94. Kg2 {[%emt 0:00:02]} Kd6 {[%emt 0:00:01]} 95. Kf3 {[%emt 0:00:02]} Ke7 {[%emt 0:00:08]} 96. Ra6 {[%emt 0:00:02]} Rd1 {[%emt 0:00:06]} 97. Rxa2 {[%emt 0:00:03]} Rd5 {[%emt 0:00:01]} 98. Ra7+ {[%emt 0:00:07]} Kf8 {[%emt 0:00:01]} 99. Rb7 {[%emt 0:00:06]} Rxg5 {[%emt 0:00:03]} 100. Ra7 {[%emt 0:00:01]} Kg7 {[%emt 0:00:01]} 101. Rb7 {[%emt 0:00:01]} Rf5+ {[%emt 0:00:00]} 102. Kg2 {[%emt 0:00:01]} Kf6 {[%emt 0:00:02]} 103. Ra7 {[%emt 0:00:01]} Rd5 {[%emt 0:00:01]} 104. Rb7 {[%emt 0:00:03]} Rd6 {[%emt 0:00:02]} 105. Ra7 {[%emt 0:00:01]} Re6 {[%emt 0:00:01]} 106. Rb7 {[%emt 0:00:01]} Kg7 {[%emt 0:00:01]} 107. Ra7 {[%emt 0:00:00]} Rf6 {[%emt 0:00:01]} 108. Rb7 {[%emt 0:00:01]} Rf5 {[%emt 0:00:01]} 109. Ra7 {[%emt 0:00:00]} Rg5 {[%emt 0:00:01]} 110. Kf3 {[%emt 0:00:02]} Re5 {[%emt 0:00:02]} 111. Rb7 {[%emt 0:00:02]} Rf5+ {[%emt 0:00:02]} 112. Kg2 {[%emt 0:00:01]} Kh6 {[%emt 0:00:01]} 113. Ra7 {[%emt 0:00:00]} f6 {[%emt 0:00:01]} 114. Ra4 {[%emt 0:00:05]} Rc5 {[%emt 0:00:02]} 115. Rb4 {[%emt 0:00:01]} Kg5 {[%emt 0:00:01]} 116. Ra4 {[%emt 0:00:00]} Kf5 {[%emt 0:00:02]} 117. Rf4+ {[%emt 0:00:04]} Ke5 {[%emt 0:00:02]} 118. Ra4 {[%emt 0:00:01]} g5 {[%emt 0:00:01]} 119. Rb4 {[%emt 0:00:02]} Kf5 {[%emt 0:00:01]} 120. Ra4 {[%emt 0:00:01]} Kg6 {[%emt 0:00:01]} 121. Rb4 {[%emt 0:00:01]} Rc6 {[%emt 0:00:01]} 122. Ra4 {[%emt 0:00:00]} Rd6 {[%emt 0:00:01]} 123. Rb4 {[%emt 0:00:01]} Re6 {[%emt 0:00:00]} 124. Ra4 {[%emt 0:00:01]} f5 {[%emt 0:00:02]} 125. Rb4 {[%emt 0:00:02]} Rf6 {[%emt 0:00:09]} 126. Kf3 {[%emt 0:00:03]} Rd6 {[%emt 0:00:05]} 127. Ra4 {[%emt 0:00:01]} Rd3+ {[%emt 0:00:05]} 128. Kg2 {[%emt 0:00:02]} g4 {[%emt 0:00:00]} 129. Ra8 {[%emt 0:00:02]} f4 {[%emt 0:00:05]} 130. gxf4 {[%emt 0:00:04]} Rf3 {[%emt 0:00:01]} 131. Rg8+ {[%emt 0:00:04]} Kh7 {[%emt 0:00:04]} 132. Rg5 {[%emt 0:00:14]} Kh6 {[%emt 0:00:01]} 133. Rf5 {[%emt 0:00:02]} h4 {[%emt 0:00:03]} 134. Kg1 {[%emt 0:00:06]} h3 {[%emt 0:00:06]} 135. Rf8 {[%emt 0:00:04]} Kg7 {[%emt 0:00:03]} 136. Rf5 {[%emt 0:00:02]} Kh6 {[%emt 0:00:03]} 137. Rf8 {[%emt 0:00:01]} Rc3 {[%emt 0:00:03]} 138. Rg8 {[%emt 0:00:02]} Kh5 {[%emt 0:00:01]} 139. Rh8+ {[%emt 0:00:02]} Kg6 {[%emt 0:00:01]} 140. Rf8 {[%emt 0:00:04]} Rc4 {[%emt 0:00:04]} 141. Kh2 {[%emt 0:00:03]} Rc3 {[%emt 0:00:02]} 142. Rg8+ {[%emt 0:00:02]} Kf5 {[%emt 0:00:01]} 143. Rf8+ Ke4 144. f5 {[%emt 0:00:02]} Kf3 {[%emt 0:00:02]} 145. f6 {[%emt 0:00:02]} Rc2 {[%emt 0:00:04]} 146. f7 {[%emt 0:00:02]} Rxf2+ {[%emt 0:00:01]} 147. Kg1 {[%emt 0:00:00]} h2+ {[%emt 0:00:03]} 148. Kh1 {[%emt 0:00:01]} Kg3 {[%emt 0:00:01]} 0-1

[Event "IMSA Blitz Women 2019"]
[Site "Hengshui"]
[Date "2019.05.17"]
[Round "6.2"]
[White "Harika, Dronavalli"]
[Black "Kosteniuk, Alexandra"]
[Result "1/2-1/2"]
[ECO "A03"]
[WhiteElo "2492"]
[BlackElo "2546"]
[Annotator "ChessBase"]
[PlyCount "84"]
[EventDate "2019.05.17"]
[EventType "blitz"]
[EventCountry "CHN"]
[SourceTitle "playchess.com"]
[Source "ChessBase"]
[SourceQuality "1"]
[TimeControl "180+2"]

1. f4 {[%emt 0:00:00]} d5 {[%emt 0:00:00]} 2. Nf3 {[%emt 0:00:01]} Nf6 {[%emt 0:00:01]} 3. g3 {[%emt 0:00:01]} g6 {[%emt 0:00:01]} 4. Bg2 {[%emt 0:00:01]} Bg7 {[%emt 0:00:00]} 5. O-O {[%emt 0:00:02]} O-O {[%emt 0:00:01]} 6. d3 {[%emt 0:00:02]} Nc6 {[%emt 0:00:02]} 7. e3 {[%emt 0:00:22]} Bf5 {[%emt 0:00:16]} 8. Nc3 {[%emt 0:00:03]} Qc8 {[%emt 0:00:02]} 9. Qe2 {[%emt 0:00:07]} Bh3 {[%emt 0:00:04]} 10. e4 {[%emt 0:00:05]} Bxg2 {[%emt 0:00:09]} 11. Kxg2 {[%emt 0:00:01]} d4 {[%emt 0:00:17]} 12. Nd1 {[%emt 0:00:02]} e6 {[%emt 0:00:11]} 13. Nf2 {[%emt 0:00:03]} Qd7 {[%emt 0:00:08]} 14. Bd2 {[%emt 0:00:03]} Ne8 {[%emt 0:00:15]} 15. e5 {[%emt 0:00:08]} f5 {[%emt 0:00:02]} 16. exf6 {[%emt 0:00:01]} Nxf6 {[%emt 0:00:02]} 17. Rae1 {[%emt 0:00:02]} Rae8 {[%emt 0:00:01]} 18. Ne4 {[%emt 0:00:05]} Qd5 {[%emt 0:00:07]} 19. a3 {[%emt 0:00:16]} e5 {[%emt 0:00:02]} 20. Nxf6+ {[%emt 0:00:01]} Bxf6 {[%emt 0:00:01]} 21. Qe4 {[%emt 0:00:01]} Qxe4 {[%emt 0:00:07]} 22. Rxe4 {[%emt 0:00:05]} exf4 {[%emt 0:00:01]} 23. Bxf4 {[%emt 0:00:08]} Rxe4 {[%emt 0:00:14]} 24. dxe4 {[%emt 0:00:00]} Re8 {[%emt 0:00:10]} 25. Re1 {[%emt 0:00:02]} Re7 {[%emt 0:00:16]} 26. e5 {[%emt 0:00:07]} Bg7 {[%emt 0:00:01]} 27. Re4 {[%emt 0:00:08]} h6 {[%emt 0:00:04]} 28. h4 {[%emt 0:00:04]} Rd7 {[%emt 0:00:10]} 29. b4 {[%emt 0:00:05]} a6 {[%emt 0:00:02]} 30. Bc1 {[%emt 0:00:20]} Rd5 {[%emt 0:00:11]} 31. e6 {[%emt 0:00:07]} Ne7 {[%emt 0:00:04]} 32. Bb2 {[%emt 0:00:23]} d3 {[%emt 0:00:01]} 33. Bxg7 {[%emt 0:00:02]} Kxg7 {[%emt 0:00:00]} 34. cxd3 {[%emt 0:00:03]} Rxd3 {[%emt 0:00:01]} 35. Rf4 {[%emt 0:00:04]} Nf5 {[%emt 0:00:09]} 36. g4 {[%emt 0:00:07]} Nd6 {[%emt 0:00:01]} 37. Kf2 {[%emt 0:00:14]} Rxa3 {[%emt 0:00:31]} 38. e7 {[%emt 0:00:09]} Ra2+ {[%emt 0:00:01]} 39. Kf1 {[%emt 0:00:02]} Ra1+ {[%emt 0:00:03]} 40. Kf2 {[%emt 0:00:05]} Ra2+ {[%emt 0:00:01]} 41. Kf1 {[%emt 0:00:02]} Ra1+ {[%emt 0:00:00]} 42. Kf2 {[%emt 0:00:01]} Ra2+ {[%emt 0:00:01]} 1/2-1/2

[Event "IMSA Blitz Women 2019"]
[Site "Hengshui"]
[Date "2019.05.18"]
[Round "7.2"]
[White "Harika, Dronavalli"]
[Black "Paehtz, Elisabeth"]
[Result "1-0"]
[ECO "A03"]
[WhiteElo "2492"]
[BlackElo "2470"]
[Annotator "RC"]
[PlyCount "99"]
[EventDate "2019.05.17"]
[EventType "blitz"]
[EventCountry "CHN"]
[SourceTitle "playchess.com"]
[Source "ChessBase"]
[SourceQuality "1"]
[TimeControl "180+2"]

1. f4 {[%emt 0:00:00]} d5 {[%emt 0:00:00]} 2. Nf3 {[%emt 0:00:00]} Bg4 {[%emt 0:00:02]} 3. e3 {[%emt 0:00:18]} Nd7 {[%emt 0:00:02]} 4. Be2 {[%emt 0:00:01]} c6 {[%emt 0:00:05]} 5. b3 {[%emt 0:00:03]} Bxf3 {[%emt 0:00:03]} 6. Bxf3 {[%emt 0:00:01]} e5 {[%emt 0:00:01]} 7. fxe5 {[%emt 0:00:09]} Nxe5 {[%emt 0:00:02]} 8. O-O {[%emt 0:00:10]} Bd6 {[%emt 0:00:02]} 9. Bb2 {[%emt 0:00:06]} Nf6 {[%emt 0:00:06]} 10. Nc3 {[%emt 0:00:31]} Qc7 {[%emt 0:00:04]} 11. h3 {[%emt 0:00:06]} Qe7 {[%emt 0:00:02]} 12. Ne2 {[%emt 0:00:05]} O-O-O {[%emt 0:00:09]} 13. a4 {[%emt 0:00:07]} h5 {[%emt 0:00:06]} 14. a5 {[%emt 0:00:01]} a6 {[%emt 0:00:02]} 15. Nd4 {[%emt 0:00:09]} g6 {[%emt 0:00:02]} 16. Qe2 {[%emt 0:00:14]} Ne4 {[%emt 0:00:18]} 17. Bxe4 {[%emt 0:00:11]} dxe4 {[%emt 0:00:01]} 18. d3 {[%emt 0:00:14]} f5 {[%emt 0:00:26]} 19. dxe4 {[%emt 0:00:01]} fxe4 {[%emt 0:00:01]} 20. Rf4 {[%emt 0:00:32]} Nd7 {[%emt 0:00:08]} 21. Nxc6 {[%emt 0:00:06]} bxc6 {[%emt 0:00:01]} 22. Qxa6+ {[%emt 0:00:01]} Kb8 {[%emt 0:00:04]} 23. Bd4 {[%emt 0:00:03]} Bc5 {[%emt 0:00:12]} 24. Qxc6 {[%emt 0:00:10]} Bxd4 {[%emt 0:00:03]} 25. exd4 {[%emt 0:00:01]} Qb4 {[%emt 0:00:11]} 26. Rxe4 {[%emt 0:00:05]} Qb7 {[%emt 0:00:13]} 27. Qxb7+ {[%emt 0:00:03]} Kxb7 {[%emt 0:00:01]} 28. c4 {[%emt 0:00:05]} Rhe8 {[%emt 0:00:04]} 29. Rf4 {[%emt 0:00:01]} Nb8 {[%emt 0:00:09]} 30. b4 {[%emt 0:00:02]} Nc6 {[%emt 0:00:03]} 31. d5 {[%emt 0:00:01]} Ne5 {[%emt 0:00:06]} 32. b5 {[%emt 0:00:06]} g5 {[%emt 0:00:04]} 33. Rd4 {[%emt 0:00:12]} Rc8 {[%emt 0:00:01]} 34. d6 {[%emt 0:00:02]} Rxc4 {[%emt 0:00:03]} 35. Rd5 {[%emt 0:00:02]} Nd7 {[%emt 0:00:21]} 36. Rf1 {[%emt 0:00:02]} g4 {[%emt 0:00:10]} 37. Rxh5 {[%emt 0:00:01]} g3 {[%emt 0:00:02]} 38. Rg5 {[%emt 0:00:01]} Rd4 {[%emt 0:00:13]} 39. Rxg3 {[%emt 0:00:02]} Rxd6 {[%emt 0:00:01]} 40. Rg5 {[%emt 0:00:02]} Re2 {[%emt 0:00:08]} 41. Rf7 {[%emt 0:00:02]} Kc7 {[%emt 0:00:10]} 42. Kh2 {[%emt 0:00:02]} Rdd2 {[%emt 0:00:02]} 43. Rgg7 {[%emt 0:00:01]} Kd8 {[%emt 0:00:02]} 44. Rg8+ {[%emt 0:00:01]} Kc7 {[%emt 0:00:01]} 45. Rgg7 {[%emt 0:00:01]} Kd8 {[%emt 0:00:00]} 46. b6 {[%emt 0:00:01]} Rd6 {[%emt 0:00:06]} 47. b7 {[%emt 0:00:04]} Rb2 {[%emt 0:00:01]} 48. a6 {[%emt 0:00:01]} Nc5 {[%emt 0:00:13]} 49. a7 {[%emt 0:00:03]} Nxb7 {[%emt 0:00:04]} 50. a8=Q# {[%emt 0:00:02]} 1-0

[Event "IMSA Blitz Women 2019"]
[Site "Hengshui"]
[Date "2019.05.18"]
[Round "7.2"]
[White "Khotenashvili, Bela"]
[Black "Abdumalik, Zhansaya"]
[Result "0-1"]
[ECO "A45"]
[WhiteElo "2476"]
[BlackElo "2464"]
[Annotator "RC"]
[PlyCount "98"]
[EventDate "2019.05.17"]
[EventType "blitz"]
[EventCountry "CHN"]
[SourceTitle "playchess.com"]
[Source "ChessBase"]
[SourceQuality "1"]
[TimeControl "180+2"]

1. d4 {[%emt 0:00:00]} Nf6 {[%emt 0:00:00]} 2. Bg5 {[%emt 0:00:00]} d5 {[%emt 0:00:02]} 3. e3 {[%emt 0:00:03]} Nbd7 {[%emt 0:00:07]} 4. Nd2 {[%emt 0:00:08]} g6 {[%emt 0:00:03]} 5. c3 {[%emt 0:00:05]} Bg7 {[%emt 0:00:02]} 6. Bd3 {[%emt 0:00:01]} c5 {[%emt 0:00:01]} 7. Ngf3 {[%emt 0:00:59]} O-O {[%emt 0:00:03]} 8. a4 {[%emt 0:00:03]} Re8 {[%emt 0:00:04]} 9. a5 {[%emt 0:00:05]} e5 {[%emt 0:00:12]} 10. dxe5 Nxe5 {[%emt 0:00:01]} 11. Nxe5 {[%emt 0:00:03]} Rxe5 {[%emt 0:00:01]} 12. Nf3 {[%emt 0:00:22]} Re8 {[%emt 0:00:14]} 13. O-O {[%emt 0:00:04]} h6 {[%emt 0:00:07]} 14. Bh4 {[%emt 0:00:03]} Qd6 {[%emt 0:00:50]} 15. Bg3 {[%emt 0:00:11]} Qe6 {[%emt 0:00:01]} 16. Qa4 {[%emt 0:00:26]} Ne4 {[%emt 0:00:24]} 17. Rfd1 {[%emt 0:00:34]} a6 {[%emt 0:00:16]} 18. Bxe4 {[%emt 0:00:05]} dxe4 {[%emt 0:00:16]} 19. Rd6 {[%emt 0:00:09]} Qe7 {[%emt 0:00:08]} 20. Nd2 {[%emt 0:00:03]} h5 {[%emt 0:00:06]} 21. h4 {[%emt 0:00:09]} Bg4 {[%emt 0:00:04]} 22. Nc4 {[%emt 0:00:04]} Rad8 {[%emt 0:00:01]} 23. Rxd8 {[%emt 0:00:03]} Rxd8 24. Qb3 {[%emt 0:00:01]} Be6 {[%emt 0:00:05]} 25. Qa4 {[%emt 0:00:01]} Bf8 {[%emt 0:00:06]} 26. Nb6 {[%emt 0:00:01]} Bg4 {[%emt 0:00:04]} 27. Qc4 {[%emt 0:00:02]} Rd2 {[%emt 0:00:11]} 28. b3 {[%emt 0:00:01]} Be2 {[%emt 0:00:11]} 29. Qa4 {[%emt 0:00:02]} Bb5 {[%emt 0:00:01]} 30. Qa3 {[%emt 0:00:00]} Qf6 {[%emt 0:00:04]} 31. Qc1 {[%emt 0:00:02]} Rd3 {[%emt 0:00:02]} 32. c4 {[%emt 0:00:00]} Bc6 {[%emt 0:00:02]} 33. Rb1 {[%emt 0:00:02]} Bd6 {[%emt 0:00:02]} 34. Bxd6 {[%emt 0:00:02]} Qxd6 {[%emt 0:00:02]} 35. Qb2 {[%emt 0:00:02]} Rd2 {[%emt 0:00:03]} 36. Qc3 {[%emt 0:00:01]} Rd3 {[%emt 0:00:01]} 37. Qb2 {[%emt 0:00:00]} Rd2 {[%emt 0:00:07]} 38. Qc3 {[%emt 0:00:01]} Rd3 {[%emt 0:00:03]} 39. Qb2 {[%emt 0:00:01]} Qd8 {[%emt 0:00:01]} 40. g3 {[%emt 0:00:02]} Qd6 {[%emt 0:00:01]} 41. Na4 {[%emt 0:00:02]} Bd7 {[%emt 0:00:05]} 42. Qa3 {[%emt 0:00:03]} Rd1+ {[%emt 0:00:03]} 43. Rxd1 {[%emt 0:00:01]} Qxd1+ {[%emt 0:00:00]} 44. Kh2 {[%emt 0:00:01]} Bg4 {[%emt 0:00:03]} 45. Nc3 {[%emt 0:00:04]} Qe1 {[%emt 0:00:02]} 46. Nxe4 {[%emt 0:00:09]} Bf3 {[%emt 0:00:01]} 47. g4 {[%emt 0:00:01]} Bxe4 {[%emt 0:00:02]} 48. Qxc5 {[%emt 0:00:02]} Qh1+ {[%emt 0:00:01]} 49. Kg3 {[%emt 0:00:01]} Qf3+ {[%emt 0:00:01]} 0-1